Cogmind - Beta 13 @@@ ROGUE MODE // 2024.04.15 @ 04:01:56 Player: Exceptionally Mediocre Result: Destroyed by D-53 Grenadier with Mini Grenade Launcher Performance ------------- Evolutions (0) 0 Regions Visited (2) 400 Robots Destroyed (24) 120 Value Destroyed (385) 385 Prototype IDs (0) 0 Alien Tech Used (0) 0 Bonus (0) 0 TOTAL SCORE: 905 Bonus ------- None Cogmind --------- Core Integrity 0/250 Matter 143/300 Energy 148/265 System Corruption 1% Temperature Cool (0) Movement Rolling (200) Ox8 Location -10/Mines Parts ------- > --- POWER (1) -------- Improved Ion Engine > --- PROPULSION (2) --- Wheel > --- UTILITY (2) ------ Huge Storage Unit Targeting Computer > --- WEAPON (2) ------- (None) > --- INVENTORY (25) --- Improved Ion Engine Improved Ion Engine Wheel Compact Wheel Improved Heat Sink Large Storage Unit High-capacity Battery (250) Large Matter Pod (90) Signal Interpreter Propulsion Shielding Medium Laser Particle Cannon Particle Cannon Assault Rifle Assault Rifle Assault Rifle Assault Rifle Light Cannon Grenade Launcher Grenade Launcher Mining Claw Peak State ------------ > --- POWER ------------ Improved Ion Engine > --- PROPULSION ------- Wheel Compact Wheel > --- UTILITY ---------- Huge Storage Unit Improved Terrain Scanner > --- WEAPON ----------- Medium Laser Light Cannon > --- INVENTORY -------- Improved Ion Engine Improved Ion Engine Improved Ion Engine Wheel Wheel Wheel Cooling System Large Storage Unit High-capacity Battery Large Matter Pod Targeting Computer Assault Rifle Assault Rifle Assault Rifle Light Cannon Grenade Launcher [Rating: 12] Favorites ----------- Power Improved Ion Engine Engine Improved Ion Engine Propulsion Wheel Wheel Wheel Utility Huge Storage Unit Device Improved Terrain Scanner Storage Huge Storage Unit Processor Targeting Computer Weapon Light Cannon Energy Gun Medium Laser Ballistic Gun Assault Rifle Ballistic Cannon Light Cannon Launcher Grenade Launcher Build | -11 -10 -10 ------- Run | Yrd Mat Min Slots Evolved . | . . . Power . | . . . Propulsion . | . . . Utility . | . . . Weapon . | . . . Parts Attached 21 | 8 8 5 Power 3 | 1 1 1 Engine 3 | 1 1 1 Core . | . . . Reactor . | . . . Propulsion 6 | 2 1 3 Treads . | . . . Leg . | . . . Wheel 6 | 2 1 3 Hover . | . . . Flight . | . . . Utility 6 | 2 4 . Device 1 | 1 . . Storage 4 | 1 3 . Processor 1 | . 1 . Hackware . | . . . Protection . | . . . Artifact . | . . . Weapon 6 | 3 2 1 Energy Gun 3 | 3 . . Energy Cannon . | . . . Ballistic Gun 1 | . 1 . Ballistic Cannon 1 | . 1 . Launcher 1 | . . 1 Special Weapon . | . . . Impact Weapon . | . . . Slashing Weapon . | . . . Piercing Weapon . | . . . Special Melee Weapon . | . . . Unidentified Prototypes . | . . . Parts Lost 9 | . 2 7 Power 1 | . . 1 Propulsion 5 | . 1 4 Utility 1 | . 1 . Weapon 2 | . . 2 Highest Loss Streak 6 | . 2 6 To Critical Strikes . | . . . Average Slot Usage (%) 99 | . 100 99 Engine 14 | . 14 14 Wheel 28 | . 28 28 Device 6 | . 8 . Storage 14 | . 14 14 Processor 7 | . 5 14 Energy Gun 7 | . 9 . Ballistic Gun 5 | . 5 4 Ballistic Cannon 12 | . 12 13 Launcher 2 | . . 9 Naked Turns . | . . . Heaviest Build 93 | 14 93 93 Greatest Support 26 | 26 26 20 Greatest Overweight (x) 4 | . 4 4 Average Overweight (x) 1 | . 1 4 Largest Inventory Capacity 25 | 8 25 25 Average Capacity 19 | 7 19 25 Most Carried 25 | 8 25 25 Average Carried 16 | 4 16 24 Final Capacity 25 | 8 25 25 Final Carried 25 | 8 25 21 Class Distribution -------------------- 100% | Mutant Dominant Class ---------------- Mutant | -10/Materials Mutant | -10/Mines Resources | -11 -10 -10 ----------- Run | Yrd Mat Min Matter Collected 673 | 280 335 58 Remotely . | . . . Salvage Created 449 | 144 243 62 Parts 41 | 14 21 6 Haulers Intercepted 2 | . 2 . Recyclers Shooed 1 | . . 1 Parts Field Recycled . | . . . Retrieved Matter . | . . . Parts Self-Destructed . | . . . Prevented . | . . . Kills | -11 -10 -10 ------- Run | Yrd Mat Min Combat Hostiles Destroyed 12 | . 7 5 Guns 1 | . 1 . Cannons 7 | . 6 1 AOE 4 | . . 4 Classes Destroyed 7 | 3 4 . Worker 3 | 1 1 1 Tunneler 3 | 3 . . Hauler 2 | . 2 . Recycler 1 | 1 . . Watcher 3 | . 3 . Swarmer 6 | . 3 3 Grunt 6 | . 4 2 Best Kill Streak 5 | 3 4 5 Combat Bots Only 5 | . 3 5 Max Kills in Single Turn 1 | 1 1 1 Gunslinging . | . . . Exploded 1 | . . 1 Melee . | . . . Uniques/NPCs Destroyed . | . . . Combat | -11 -10 -10 -------- Run | Yrd Mat Min Hostile Shots Fired 73 | . 49 24 Missed 17 | . 11 6 Damage Taken 929 | . 455 474 Core 265 | . 112 153 Absorbed by Shields . | . . . Core Remaining (%) 100 | 100 . . Volleys Fired 65 | 8 47 10 Largest 2 | 2 2 2 Hottest 90 | 90 85 65 Shots Fired 121 | 16 94 11 Gun 63 | 16 47 . Cannon 51 | . 47 4 Launcher 7 | . . 7 Special . | . . . Kinetic 71 | . 67 4 Thermal 43 | 16 27 . Explosive 7 | . . 7 Electromagnetic . | . . . Robot Hit Streak 11 | 8 11 4 Robot Miss Streak 6 | 2 6 2 Penetration Max . | . . . Secondary Targets . | . . . Shots Hit Robots 68 | 10 54 4 Core Hits 39 | 6 19 14 Critical Kills . | . . . Critical Parts Destroyed . | . . . Critical Strikes 3 | . 3 . Burn 2 | . 2 . Blast 1 | . 1 . Melee Attacks . | . . . Impact . | . . . Slashing . | . . . Piercing . | . . . Sneak Attacks . | . . . Combat Hostiles . | . . . Follow-up Attacks . | . . . Damage Inflicted 1340 | 116 819 405 Guns 439 | 116 323 . Cannons 532 | . 496 36 Explosions 369 | . . 369 Melee . | . . . Ramming . | . . . Kinetic 683 | . 647 36 Thermal 288 | 116 172 . Explosive 369 | . . 369 Electromagnetic . | . . . Impact . | . . . Slashing . | . . . Piercing . | . . . Highest Corruption 1 | . 1 1 Average Corruption 1 | . 1 1 Corruption Purged . | . . . Corruption Blocked . | . . . Effects 8 | . 5 3 Matter Fused 5 | . 4 1 Energy Discharges 1 | . . 1 Data Loss (minor) 2 | . 1 1 Overload Shots . | . . . Overflow Damage 25 | . 25 . Projectiles 25 | . 25 . Explosions . | . . . Melee . | . . . Knockbacks 5 | . 5 . Impact . | . . . Kinetic 5 | . 5 . Secondary . | . . . Self-Inflicted Damage . | . . . Shots . | . . . Rammed . | . . . Targets Rammed . | . . . Kicked . | . . . Crushed . | . . . Highest Temperature 242 | 90 242 5 Average Temperature 65 | 30 73 3 Received Heat Transfer 222 | . 213 9 Effects 3 | . 3 . Interference 3 | . 3 . Siege Activations . | . . . Robots Corrupted . | . . . Combat Hostiles . | . . . Parts Fried . | . . . Impact Corruptions . | . . . Robots Melted . | . . . Combat Hostiles . | . . . Parts Melted 5 | 1 4 . Heat Transferred 988 | 322 666 . Parts Sabotaged . | . . . Parts Stolen . | . . . Parts Stripped . | . . . Power Chain Reactions . | . . . Alert | -11 -10 -10 ------- Run | Yrd Mat Min Peak Influence 185 | 25 185 156 Initial 16 | . 16 13 Average 78 | 8 83 94 Maximum Alert Level . | . . . Low Security (%) 100 | 100 100 100 Level 1 . | . . . Level 2 . | . . . Level 3 . | . . . Level 4 . | . . . Level 5 . | . . . High Security . | . . . Max Security . | . . . Squads Dispatched 1 | . 1 . Investigation 1 | . 1 . Extermination . | . . . Reinforcement . | . . . Assault . | . . . Garrison . | . . . Intercept . | . . . Searches Triggered . | . . . Construction Impeded . | . . . Haulers Reinforced . | . . . Active Scanning Responses . | . . . Cargo Convoy Interrupts . | . . . Stealth | -11 -10 -10 --------- Run | Yrd Mat Min Distress Signals 2 | . 1 1 Communications Jammed . | . . . Distress Signals . | . . . Times Spotted 23 | . 16 7 Peak Tracking Total 4 | . 4 3 Tactical Retreats . | . . . Traps | -11 -10 -10 ------- Run | Yrd Mat Min Traps Triggered 1 | . 1 . Indirectly . | . . . Trap Hack Attempts . | . . . Triggered . | . . . Disarmed . | . . . Reprogrammed . | . . . Reused . | . . . Traps Extracted . | . . . Installed . | . . . Triggered . | . . . Machines | -11 -10 -10 ---------- Run | Yrd Mat Min Machines Disabled . | . . . Max in Single Turn . | . . . Machines Repaired . | . . . Machines Dismantled . | . . . Machines Sabotaged . | . . . Overloaded Fab Kills . | . . . Hacking | -11 -10 -10 --------- Run | Yrd Mat Min Machines Accessed 7 | . 7 . Terminals 6 | . 6 . Fabricators . | . . . Repair Stations . | . . . Recycling Units 1 | . 1 . Scanalyzers . | . . . Garrison Access . | . . . Total Hacks 12 | . 12 . Successful 7 | . 7 . Failed 5 | . 5 . Catastrophic . | . . . Database Lockouts . | . . . Manual 10 | . 10 . Terminals 9 | . 9 . Fabricators . | . . . Repair Stations . | . . . Recycling Units 3 | . 3 . Scanalyzers . | . . . Garrison Access . | . . . Terminal Hacks . | . . . Fabricator Hacks . | . . . Repair Station Hacks . | . . . Recycling Unit Hacks 1 | . 1 . Retrieve Components 1 | . 1 . Scanalyzer . | . . . Garrison Access Hacks . | . . . Unauthorized Hacks 6 | . 6 . Terminals 6 | . 6 . Botnet 6 | . 6 . Fabricators . | . . . Repair Stations . | . . . Recycling Units . | . . . Scanalyzers . | . . . Garrison Access . | . . . Data Cores Recovered . | . . . Used . | . . . Hacking Detections 3 | . 3 . Full Trace Events 2 | . 2 . Feedback Events 1 | . 1 . Corruption 1 | . 1 . Feedback Blocked . | . . . Robot Schematics Acquired . | . . . Robots Built . | . . . Authchips . | . . . Time . | . . . Total Robot Build Rating . | . . . Part Schematics Acquired . | . . . Parts Built . | . . . Authchips . | . . . Time . | . . . Total Part Build Rating . | . . . Parts Repaired . | . . . Time . | . . . Parts Recycled . | . . . Recycled Matter . | . . . Retrieved Matter . | . . . Retrieved Components . | . . . Parts Scanalyzed . | . . . Part Schematics Acquired . | . . . Parts Damaged . | . . . Bothacking | -11 -10 -10 ------------ Run | Yrd Mat Min Used RIF Installer . | . . . Robots Hacked . | . . . Non-combat . | . . . Combat . | . . . Robot Hacks Applied . | . . . Relay Couplers Released . | . . . Fabnet Peak Effective % . | . . . Robots Rewired . | . . . Allies Hacked . | . . . Hacks Repelled . | . . . Allies | -11 -10 -10 -------- Run | Yrd Mat Min Total Allies . | . . . Largest Group . | . . . Highest-Rated Group . | . . . Highest-Rated Ally . | . . . Total Orders . | . . . Ally Attacks . | . . . Total Damage . | . . . Kills . | . . . Allies Corrupted . | . . . Allies Melted . | . . . Intel | -11 -10 -10 ------- Run | Yrd Mat Min Robot Analysis Total . | . . . Derelict Logs Recovered . | . . . Drone Launches . | . . . Drone Recoveries . | . . . Exploration | -11 -10 -10 ------------- Run | Yrd Mat Min Turns Passed 1225 | 114 874 237 Spaces Moved 810 | 79 605 126 Core 1 | 1 . . Treads . | . . . Legs . | . . . Wheels 809 | 78 605 126 Hover . | . . . Flight . | . . . Fastest Speed 50 | 50 90 140 Average Speed 114 | 89 113 140 Slowest Speed 140 | 90 140 140 Overloaded Moves . | . . . Propulsion Burnouts . | . . . Robots Hopped . | . . . Cave-ins Triggered . | . . . Exploration Rate (%) 37 | 4 67 42 Regions Visited 2 Branch Regions 1 Pre-discovered Areas . | . . . Known Exits Taken . | . . . Unknown Exits Taken 2 | 1 1 . Scrap Searched . | . . . Spaces Dug . | . . . Terrain Destroyed 45 | . . 45 Melee . | . . . Projectile . | . . . AOE 45 | . . 45 Terrain Rammed . | . . . Walls Destroyed . | . . . Machines Disabled . | . . . Actions | -11 -10 -10 --------- Run | Yrd Mat Min Total 984 | 104 705 175 Wait 40 | . 6 34 Move 808 | 78 604 126 Hop . | . . . Pick Up 36 | 9 27 . Fast Attach 7 | 7 . . Attach 6 | . 2 4 Detach . | . . . Swap 8 | 1 6 1 Drop 13 | 1 12 . Fire 65 | 8 47 10 Melee . | . . . Ram . | . . . Kick . | . . . Crush . | . . . Escape Stasis . | . . . Rewire 1 | . 1 . Trap . | . . . Miscellaneous . | . . . Route ------- -11/Scrapyard -10/Materials (discovered 3 exits: [*Mat] / [*Min x2]) -10/Mines (discovered 1 exit: [*Mat]) History --------- Turn | Location | Event 42 | -11/Scrapyard | Discovered new exit (range 16) 115 | -11/Scrapyard | Entered Materials 166 | -10/Materials | Discovered new exit (range 7) 303 | -10/Materials | Build established: Mutant 546 | -10/Materials | Discovered new exit (range 11) 677 | -10/Materials | Discovered new exit (range 9) 989 | -10/Materials | Entered Mines 1143 | -10/Mines | Assembled infested the area 1154 | -10/Mines | Discovered new exit (range 6) 1215 | -10/Mines | Core integrity fell below 50% 1223 | -10/Mines | Core integrity fell below 20% 1226 | -10/Mines | Destroyed by D-53 Grenadier with Mini Grenade Launcher Last Messages --------------- 01113_ System corrupted: Energy discharge (-58). 01137_ K-01 Serf collects debris. 01143_ ALERT: Infestation in the mines, dispatching Demolisher response squad. 01145_ System corrupted: Component data lost. 01150_ U-05 Engineer lays Concrete. 01153_ K-01 Serf collects debris. 01154_ EXIT=FOUND 01155_ K-01 Serf collects debris. 01212_ Wheel destroyed. 01213_ K-01 Serf collects debris. 01214_ K-01 Serf destroyed. 01215_ Wheel destroyed. 01215_ Imp. Ion Engine destroyed. 01216_ The unstable cave ceiling collapses. 01218_ Lgt. Cannon destroyed. 01220_ The unstable cave ceiling collapses. 01220_ Grenade Launcher destroyed. 01223_ The unstable cave ceiling collapses. 01226_ Com. Wheel destroyed. Map ----- +----------------------------------------------------+ | | | | | | | | | | | | | | | | | ??????????????????????????????????????????????? | | ??????????????????????????????????????????????? | | ??????????????????????????????????????????????? | | ??????????????????????????????????????????????? | | ??????????????????????????????????????????????? | | ??????????????????????????????????????????????? | | ??????????????????????????????????????????????? | | ??????????????????????????????????????????????? | | ??????????????????????######??????????????????? | | ????????????????????### ##?????????????????? | | ???????????????????## ##????????????????? | | ??????????????????## #????????????????? | | ?????????????????## ?????????????????? | | ??????????????""## # ##???????#????????? | | ??????????????"" ##### #????????? | | ???????????? ## # d #????????? | | ???????????????# ?????????? | | ????????????# # d @ #???????#???????? | | ?????????? #?????? ####????? | | ?????????? #?????? ##???? | | ??????????? ## # ##????? ##??? | | ????????????????#? # # ##?????# ##?? | | ????????????????# # ###### #?????# #?? | | ????????????????# ###?????# ###### #?? | | ????????????????#?????????# #?? | | ??????????????????????????# ##### #?? | | ??????????????????????????# #??## #?? | | ??????????????????????????# #?## #??? | | ??????????????????????????# ### #??? | | ??????????????????????????# ##??? | | ??????????????????????????# ### ####???? | | ????????????????????????### #?## < ##??????? | | ???????????????????????## #??## #???????? | | ??????????????????###### ##??## #??????? | | ?????????????????#$ #????# #??????? | | ?????????????????# ###### #?????# ##??????? | | ????????????????????????# ##??????###???????? | | ????????????????????????# ##????????????????? | | ????????????????????????# #????????????????? | | ????????????????????????## #####????????????? | | ?????????????????????????# # #????????????? | | ?????????????????????????# # #????????????? | +----------------------------------------------------+ Best States ------------- Heat Dissipation 25 Energy Generation 12 Energy Capacity 265 Matter Stores 300 Matter Capacity 300 Sight Range 16 Terrain Scan Range 16 Terrain Scan Density 10 Evasion (%) 42 Targeting Accuracy 5 Item Schematics ----------------- None Robot Schematics ------------------ None Fabricated ------------ Nothing Alien Tech Used ----------------- None Achievements -------------- None Challenges ------------ None Game ------ Seed PulseTargetScrap Manual? 0 Play Time 00:14:23 Cumulative 58.3 hours Start 2024.04.15 @ 03:49:46 End 2024.04.15 @ 04:01:56 Sessions 1 Manual Loads 0 Difficulty Rogue Special Mode None Game No. 68 Rogue 68 Adventurer 0 Explorer 0 Win Type - Total 0 Types 0/0/0/0/0/0/0/0/0 Lore% 17 Gallery% 39 Achievement% 29 Wizard Run 0 Options --------- Layout 1 ASCII 0 Keyboard 1 Movement Vi Keybinds 0 Fullscreen 1 Font 24/Smallcaps Map View 50x35 Zoom Use 0% Tactical HUD 1 Map Filters NONE Filters NONE Steam 1 RUN: 9022c2ef-0446-4177-9a18-6f7fd1e0d90c